fUST/lending_fUST_20241121
["ID","MTS","AMOUNT","RATE_DAILY","PERIOD"]
[342764491,1732120243976,-912.61,0.00022739,2]
[342764492,1732120243986,-500.0,0.00022739,2]
[342764493,1732120243996,-185.02,0.00022739,2]
[342764494,1732120244006,-110.77482891,0.00022739,2]
[342764495,1732120244018,-2458.68954152,0.00022739,2]
[342764498,1732120246013,-3290.07562957,0.00022739,2]
[342764499,1732120246024,-500.0,0.00022739,2]
[342764500,1732120246034,-500.0,0.00022739,2]
[342764501,1732120246045,-500.0,0.00022739,2]
[342764502,1732120246054,-500.0,0.00022739,2]
[342764503,1732120246064,-500.0,0.00022739,2]
[342764504,1732120246073,-694.75,0.00022739,2]
[342764505,1732120246083,-500.0,0.00022739,2]
[342764506,1732120246092,-500.0,0.00022739,2]
[342764507,1732120246101,-1530.7,0.00022739,2]
[342764508,1732120246111,-500.0,0.00022739,2]
[342764509,1732120246120,-500.0,0.00022739,2]
[342764511,1732120246130,-500.0,0.00022739,2]
[342764513,1732120246140,-500.0,0.00022739,2]
[342764515,1732120246150,-500.0,0.00022739,2]
[342764517,1732120246160,-500.0,0.00022739,2]
[342764518,1732120246169,-500.0,0.00022739,2]
[342764519,1732120246178,-500.0,0.00022739,2]
[342764521,1732120246188,-500.0,0.00022739,2]
[342764523,1732120246197,-500.0,0.00022739,2]
[342764524,1732120246206,-500.0,0.00022739,2]
[342764526,1732120246216,-500.0,0.00022739,2]
[342764528,1732120246228,-253.03645694,0.00022739,2]
[342764530,1732120246237,-517.28,0.00022739,2]
[342764531,1732120246246,-500.0,0.00022739,2]
[342764533,1732120246256,-500.0,0.00022739,2]
[342764535,1732120246266,-5527.15,0.00022739,2]
[342764536,1732120246275,-500.0,0.00022739,2]
[342764537,1732120246285,-500.0,0.00022739,2]
[342764538,1732120246294,-500.0,0.00022739,2]
[342764539,1732120246304,-500.0,0.00022739,2]
[342764540,1732120246314,-500.0,0.00022739,2]
[342764541,1732120246323,-500.0,0.00022739,2]
[342764543,1732120246333,-500.0,0.00022739,2]
[342764544,1732120246342,-500.0,0.00022739,2]
[342764545,1732120246352,-198.26090019,0.00022877,2]
[342764546,1732120246362,-467.29305052,0.00022999,2]
[342764547,1732120246371,-641.63,0.00023011,2]
[342764548,1732120246381,-500.0,0.00023012,2]
[342764549,1732120246391,-602.228217,0.00023012,2]
[342764550,1732120246400,-500.0,0.00023012,2]
[342764551,1732120246409,-500.0,0.00023012,2]
[342764552,1732120246418,-500.0,0.00023012,2]
[342764553,1732120246428,-500.0,0.00023012,2]
[342764554,1732120246438,-500.0,0.00023012,2]
[342764555,1732120246447,-500.0,0.00023012,2]
[342764556,1732120246457,-500.0,0.00023012,2]
[342764557,1732120246466,-624.62,0.00023012,2]
[342764558,1732120246482,-500.0,0.00023012,2]
[342764559,1732120246491,-749.09,0.00023012,2]
[342764560,1732120246506,-500.0,0.00023013,2]
[342764561,1732120246516,-200.0,0.00023013,2]
[342764562,1732120246525,-500.0,0.00023013,2]
[342764563,1732120246535,-500.0,0.00023013,2]
[342764564,1732120246544,-500.0,0.00023013,2]
[342764565,1732120246553,-500.0,0.00023013,2]
[342764566,1732120246563,-500.0,0.00023013,2]
[342764567,1732120246572,-500.0,0.00023013,2]
[342764568,1732120246581,-500.0,0.00023013,2]
[342764569,1732120246590,-501.15,0.00023013,2]
[342764570,1732120246601,-500.0,0.00023013,2]
[342764571,1732120246610,-500.0,0.00023013,2]
[342764572,1732120246618,-909.21,0.00023013,2]
[342764573,1732120246629,-327.12,0.00023013,2]
[342764574,1732120246638,-500.0,0.00023013,2]
[342764575,1732120246647,-500.0,0.00023013,2]
[342764576,1732120246657,-356.42740084,0.00023013,2]
[342764577,1732120246666,-400.65448165,0.00023013,2]
[342764578,1732120246676,-500.0,0.00023013,2]
[342764579,1732120246687,-256.26503776,0.00023013,2]
[342764580,1732120246696,-500.0,0.00023013,2]
[342764581,1732120246706,-340.0,0.00023013,2]
[342764582,1732120246716,-267.68,0.00023013,2]
[342764583,1732120246725,-500.0,0.00023013,2]
[342764584,1732120246735,-500.0,0.00023013,2]
[342764585,1732120246744,-500.0,0.00023013,2]
[342764586,1732120246753,-240.93664191,0.00023013,2]
[342764587,1732120246763,-500.0,0.00023013,2]
[342764588,1732120246773,-576.96,0.00023013,2]
[342764589,1732120246783,-500.0,0.00023013,2]
[342764590,1732120246792,-500.0,0.00023013,2]
[342764591,1732120246807,-263.07278679,0.00023013,2]
[342764592,1732120246817,-912.61,0.00023013,2]
[342764593,1732120246826,-500.0,0.00023013,2]
[342764594,1732120246836,-5859.54,0.00023013,2]
[342764595,1732120246848,-500.0,0.00023013,2]
[342764596,1732120246857,-500.0,0.00023013,2]
[342764597,1732120246867,-500.0,0.00023013,2]
[342764598,1732120246878,-197.4358538,0.00023013,2]
[342764599,1732120246888,-500.0,0.00023013,2]
[342764600,1732120246898,-694.75,0.00023013,2]
[342764601,1732120246908,-500.0,0.00023013,2]
[342764602,1732120246917,-500.0,0.00023013,2]
[342764603,1732120246927,-1530.7,0.00023013,2]
[342764604,1732120246936,-500.0,0.00023013,2]
[342764605,1732120246945,-500.0,0.00023013,2]
[342764606,1732120246955,-500.0,0.00023013,2]
[342764607,1732120246964,-500.0,0.00023013,2]
[342764608,1732120246973,-500.0,0.00023013,2]
[342764609,1732120246992,-500.0,0.00023013,2]
[342764610,1732120247002,-500.0,0.00023013,2]
[342764611,1732120247012,-500.0,0.00023013,2]
[342764612,1732120247023,-500.0,0.00023013,2]
[342764613,1732120247035,-500.0,0.00023013,2]
[342764614,1732120247045,-562.97,0.00023013,2]
[342764615,1732120247057,-500.0,0.00023013,2]
[342764616,1732120247068,-517.28,0.00023013,2]
[342764617,1732120247078,-559.88,0.00023013,2]
[342764618,1732120247087,-500.0,0.00023013,2]
[342764619,1732120247096,-5527.15,0.00023013,2]
[342764620,1732120247106,-500.0,0.00023013,2]
[342764621,1732120247116,-500.0,0.00023013,2]
[342764622,1732120247126,-500.0,0.00023013,2]
[342764623,1732120247136,-500.0,0.00023013,2]
[342764624,1732120247146,-500.0,0.00023013,2]
[342764625,1732120247154,-500.0,0.00023013,2]
[342764626,1732120247164,-500.0,0.00023013,2]
[342764627,1732120247174,-500.0,0.00023013,2]
[342764628,1732120247186,-500.0,0.00023127,2]
[342764629,1732120247195,-500.0,0.00023207,2]
[342764630,1732120247205,-541.16999734,0.00023282,2]
[342764631,1732120247214,-641.63,0.00023285,2]
[342764632,1732120247224,-500.0,0.00023286,2]
[342764633,1732120247236,-508.5509314,0.00023286,2]
[342764634,1732120247246,-500.0,0.00023286,2]
[342764635,1732120247256,-500.0,0.00023286,2]
[342764636,1732120247266,-500.0,0.00023286,2]
[342764637,1732120247275,-500.0,0.00023286,2]
[342764638,1732120247285,-500.0,0.00023286,2]
[342764639,1732120247297,-500.0,0.00023286,2]
[342764640,1732120247306,-624.62,0.00023286,2]
[342764641,1732120247316,-500.0,0.00023286,2]
[342764642,1732120247325,-749.09,0.00023286,2]
[342764643,1732120247335,-500.0,0.00023287,2]
[342764644,1732120247345,-200.0,0.00023287,2]
[342764645,1732120247354,-500.0,0.00023287,2]
[342764646,1732120247439,-500.0,0.00023287,2]
[342764647,1732120247450,-500.0,0.00023287,2]
[342764648,1732120247459,-500.0,0.00023287,2]
[342764649,1732120247469,-500.0,0.00023287,2]
[342764650,1732120247482,-562.26994657,0.00023287,2]
[342764651,1732120247491,-500.0,0.00023287,2]
[342764652,1732120247501,-501.15,0.00023287,2]
[342764653,1732120247510,-500.0,0.00023287,2]
[342764654,1732120247519,-500.0,0.00023287,2]
[342764655,1732120247528,-909.21,0.00023287,2]
[342764656,1732120247537,-500.0,0.00023287,2]
[342764657,1732120247547,-500.0,0.00023287,2]
[342764658,1732120247556,-500.0,0.00023287,2]
[342764659,1732120247565,-500.0,0.00023287,2]
[342764660,1732120247574,-556.90215046,0.00023287,2]
[342764661,1732120247584,-500.0,0.00023287,2]
[342764662,1732120247593,-500.0,0.00023287,2]
[342764663,1732120247602,-500.0,0.00023287,2]
[342764664,1732120247611,-576.96,0.00023287,2]
[342764665,1732120247620,-500.0,0.00023287,2]
[342764666,1732120247629,-500.0,0.00023287,2]
[342764667,1732120247639,-912.61,0.00023287,2]
[342764668,1732120247648,-500.0,0.00023287,2]
[342764669,1732120247658,-5859.54,0.00023287,2]
[342764670,1732120247667,-500.0,0.00023287,2]
[342764671,1732120247679,-500.0,0.00023287,2]
[342764672,1732120247688,-500.0,0.00023287,2]
[342764673,1732120247698,-694.75,0.00023287,2]
[342764674,1732120247707,-500.0,0.00023287,2]
[342764675,1732120247716,-263.87375775,0.00023287,2]
[342764676,1732120247725,-1530.7,0.00023287,2]
[342764677,1732120247736,-500.0,0.00023287,2]
[342764678,1732120247745,-500.0,0.00023287,2]
[342764679,1732120247754,-500.0,0.00023287,2]
[342764680,1732120247763,-500.0,0.00023287,2]
[342764681,1732120247772,-500.0,0.00023287,2]
[342764682,1732120247783,-500.0,0.00023287,2]
[342764683,1732120247792,-500.0,0.00023287,2]
[342764684,1732120247803,-500.0,0.00023287,2]
[342764685,1732120247813,-500.0,0.00023287,2]
[342764686,1732120247824,-500.0,0.00023287,2]
[342764687,1732120247834,-517.28,0.00023287,2]
[342764688,1732120247845,-500.0,0.00023287,2]
[342764689,1732120247854,-5527.15,0.00023287,2]
[342764690,1732120247863,-500.0,0.00023287,2]
[342764691,1732120247872,-500.0,0.00023287,2]
[342764692,1732120247881,-500.0,0.00023287,2]
[342764693,1732120247891,-500.0,0.00023287,2]
[342764694,1732120247901,-500.0,0.00023287,2]
[342764695,1732120247910,-500.0,0.00023287,2]
[342764696,1732120247919,-422.54232888,0.00023301,2]
[342764697,1732120247928,-412.58577296,0.00023302,2]
[342764698,1732120247939,-500.0,0.00023302,2]
[342764699,1732120247949,-509.02339917,0.00023346,2]
[342764700,1732120247959,-500.0,0.00023346,2]
[342764701,1732120247972,-1056.97045912,0.00023406,2]
[342764702,1732120247988,-552.77863768,0.00023461,2]
[342764703,1732120247999,-198.26090019,0.00023461,2]
[342764704,1732120248012,-641.63,0.00023559,2]
[342764705,1732120248024,-504.17322315,0.0002356,2]
[342764706,1732120248035,-500.0,0.0002356,2]
[342764707,1732120248045,-233.1,0.0002356,2]
[342764708,1732120248057,-500.0,0.0002356,2]
[342764709,1732120248068,-500.0,0.0002356,2]
[342764710,1732120248079,-500.0,0.0002356,2]
[342764711,1732120248090,-624.62,0.0002356,2]
[342764712,1732120248101,-500.0,0.0002356,2]
[342764713,1732120248111,-749.09,0.0002356,2]
[342764714,1732120248121,-500.0,0.00023561,2]
[342764715,1732120248132,-200.0,0.00023561,2]
[342764716,1732120248142,-500.0,0.00023561,2]
[342764717,1732120248152,-500.0,0.00023561,2]
[342764718,1732120248162,-500.0,0.00023561,2]
[342764719,1732120248172,-500.0,0.00023561,2]
[342764720,1732120248182,-500.0,0.00023561,2]
[342764721,1732120248192,-495.32183716,0.00023561,2]
[342764722,1732120248201,-501.15,0.00023561,2]
[342764723,1732120248211,-500.0,0.00023561,2]
[342764724,1732120248220,-500.0,0.00023561,2]
[342764725,1732120248237,-909.21,0.00023561,2]
[342764726,1732120248247,-500.0,0.00023561,2]
[342764727,1732120248256,-500.0,0.00023561,2]
[342764728,1732120248266,-500.0,0.00023561,2]
[342764729,1732120248276,-500.0,0.00023561,2]
[342764730,1732120248286,-500.0,0.00023561,2]
[342764731,1732120248297,-444.57277011,0.00023561,2]
[342764732,1732120248308,-500.0,0.00023561,2]
[342764733,1732120248318,-576.96,0.00023561,2]
[342764734,1732120248328,-500.0,0.00023561,2]
[342764735,1732120248338,-197.89223423,0.00023561,2]
[342764736,1732120248348,-912.61,0.00023561,2]
[342764737,1732120248358,-500.0,0.00023561,2]
[342764738,1732120248367,-5859.54,0.00023561,2]
[342764739,1732120248377,-500.0,0.00023561,2]
[342764740,1732120248387,-500.0,0.00023561,2]
[342764741,1732120248397,-500.0,0.00023561,2]
[342764742,1732120248407,-694.75,0.00023561,2]
[342764743,1732120248418,-500.0,0.00023561,2]
[342764744,1732120248428,-1530.7,0.00023561,2]
[342764745,1732120248437,-500.0,0.00023561,2]
[342764746,1732120248447,-500.0,0.00023561,2]
[342764747,1732120248456,-500.0,0.00023561,2]
[342764748,1732120248466,-462.68,0.00023561,2]
[342764749,1732120248481,-500.0,0.00023561,2]
[342764750,1732120248496,-500.0,0.00023561,2]
[342764751,1732120248505,-578.18,0.00023561,2]
[342764752,1732120248515,-500.0,0.00023561,2]
[342764753,1732120248531,-500.0,0.00023561,2]
[342764754,1732120248542,-500.0,0.00023561,2]
[342764755,1732120248551,-517.28,0.00023561,2]
[342764756,1732120248561,-484.73,0.00023561,2]
[342764757,1732120248572,-5527.15,0.00023561,2]
[342764758,1732120248581,-500.0,0.00023561,2]
[342764759,1732120248590,-500.0,0.00023561,2]
[342764760,1732120248600,-500.0,0.00023561,2]
[342764761,1732120248610,-500.0,0.00023561,2]
[342764762,1732120248620,-500.0,0.00023561,2]
[342764763,1732120248629,-500.0,0.00023561,2]
[342764764,1732120248638,-496.61,0.000237,2]
[342764765,1732120248648,-587.0,0.00023701,2]
[342764766,1732120248657,-269.01,0.00023739,4]
[342764767,1732120248667,-363.23871208,0.00023755,2]
[342764768,1732120248676,-500.0,0.00023774,2]
[342764769,1732120248685,-500.0,0.00023833,2]
[342764770,1732120248695,-500.0,0.00023833,2]
[342764771,1732120248703,-500.0,0.00023833,2]
[342764772,1732120248713,-641.63,0.00023833,2]
[342764773,1732120248722,-500.0,0.00023834,2]
[342764774,1732120248736,-500.0,0.00023834,2]
[342764775,1732120248745,-500.0,0.00023834,2]
[342764776,1732120248754,-500.0,0.00023834,2]
[342764777,1732120248764,-624.62,0.00023834,2]
[342764778,1732120248773,-500.0,0.00023834,2]
[342764779,1732120248782,-749.09,0.00023834,2]
[342764780,1732120248792,-500.0,0.00023835,2]
[342764781,1732120248806,-200.0,0.00023835,2]
[342764782,1732120248825,-500.0,0.00023835,2]
[342764783,1732120248836,-500.0,0.00023835,2]
[342764784,1732120248846,-500.0,0.00023835,2]
[342764785,1732120248856,-161.29,0.00023835,2]
[342764786,1732120248866,-568.51673866,0.00023835,2]
[342764787,1732120248875,-501.15,0.00023835,2]
[342764788,1732120248884,-500.0,0.00023835,2]
[342764789,1732120248894,-500.0,0.00023835,2]
[342764790,1732120248903,-909.21,0.00023835,2]
[342764791,1732120248912,-500.0,0.00023835,2]
[342764792,1732120248922,-500.0,0.00023835,2]
[342764793,1732120248931,-500.0,0.00023835,2]
[342764794,1732120248941,-387.20135959,0.00023835,2]
[342764795,1732120248950,-500.0,0.00023835,2]
[342764796,1732120248960,-576.96,0.00023835,2]
[342764797,1732120248969,-500.0,0.00023835,2]
[342764798,1732120248980,-912.61,0.00023835,2]
[342764799,1732120248989,-500.0,0.00023835,2]
[342764800,1732120248998,-5859.54,0.00023835,2]
[342764801,1732120249009,-500.0,0.00023835,2]
[342764802,1732120249018,-500.0,0.00023835,2]
[342764803,1732120249028,-535.3215145,0.00023835,2]
[342764804,1732120249037,-694.75,0.00023835,2]
[342764805,1732120249047,-500.0,0.00023835,2]
[342764806,1732120249056,-1530.7,0.00023835,2]
[342764807,1732120249066,-500.0,0.00023835,2]
[342764808,1732120249076,-500.0,0.00023835,2]
[342764809,1732120249085,-500.0,0.00023835,2]
[342764810,1732120249095,-500.0,0.00023835,2]
[342764811,1732120249105,-500.0,0.00023835,2]
[342764812,1732120249115,-500.0,0.00023835,2]
[342764813,1732120249125,-500.0,0.00023835,2]
[342764814,1732120249135,-500.0,0.00023835,2]
[342764815,1732120249145,-517.28,0.00023835,2]
[342764816,1732120249154,-5527.15,0.00023835,2]
[342764817,1732120249165,-500.0,0.00023835,2]
[342764818,1732120249175,-610.47749383,0.00023835,2]
[342764819,1732120249184,-500.0,0.00023835,2]
[342764820,1732120249194,-500.0,0.00023835,2]
[342764821,1732120249203,-500.0,0.00023835,2]
[342764822,1732120249212,-500.0,0.00023835,2]
[342764823,1732120249222,-609.0797967,0.00023852,2]
[342764824,1732120249234,-392.13279384,0.00024,2]
[342764825,1732120249243,-552.77863766,0.0002406,2]
[342764826,1732120249253,-641.63,0.00024107,2]
[342764827,1732120249262,-500.0,0.00024108,2]
[342764828,1732120249272,-500.0,0.00024108,2]
[342764829,1732120249281,-500.0,0.00024108,2]
[342764830,1732120249291,-500.0,0.00024108,2]
[342764831,1732120249301,-624.62,0.00024108,2]
[342764832,1732120249311,-500.0,0.00024108,2]
[342764833,1732120249321,-749.09,0.00024108,2]
[342764834,1732120249331,-500.0,0.00024109,2]
[342764835,1732120249340,-200.0,0.00024109,2]
[342764836,1732120249350,-500.0,0.00024109,2]
[342764837,1732120249359,-500.0,0.00024109,2]
[342764838,1732120249440,-500.0,0.00024109,2]
[342764839,1732120249450,-501.15,0.00024109,2]
[342764840,1732120249460,-500.0,0.00024109,2]
[342764841,1732120249469,-500.0,0.00024109,2]
[342764842,1732120249482,-909.21,0.00024109,2]
[342764843,1732120249495,-500.0,0.00024109,2]
[342764844,1732120249505,-500.0,0.00024109,2]
[342764845,1732120249514,-500.0,0.00024109,2]
[342764846,1732120249523,-500.0,0.00024109,2]
[342764847,1732120249533,-576.96,0.00024109,2]
[342764848,1732120249542,-500.0,0.00024109,2]
[342764849,1732120249551,-912.61,0.00024109,2]
[342764850,1732120249561,-605.31095703,0.00024109,2]
[342764851,1732120249571,-5859.54,0.00024109,2]
[342764852,1732120249581,-500.0,0.00024109,2]
[342764853,1732120249592,-500.0,0.00024109,2]
[342764854,1732120249602,-694.75,0.00024109,2]
[342764855,1732120249613,-500.0,0.00024109,2]
[342764856,1732120249624,-1530.7,0.00024109,2]
[342764857,1732120249634,-500.0,0.00024109,2]
[342764858,1732120249644,-500.0,0.00024109,2]
[342764859,1732120249654,-500.0,0.00024109,2]
[342764860,1732120249664,-259.20101098,0.00024109,2]
[342764861,1732120249673,-500.0,0.00024109,2]
[342764862,1732120249682,-500.0,0.00024109,2]
[342764863,1732120249692,-500.0,0.00024109,2]
[342764864,1732120249701,-500.0,0.00024109,2]
[342764865,1732120249712,-517.28,0.00024109,2]
[342764866,1732120249721,-5527.15,0.00024109,2]
[342764867,1732120249733,-500.0,0.00024109,2]
[342764868,1732120249743,-500.0,0.00024109,2]
[342764869,1732120249753,-500.0,0.00024109,2]
[342764870,1732120249762,-500.0,0.00024109,2]
[342764871,1732120249772,-500.0,0.00024109,2]
[342764872,1732120249781,-287.0,0.00024187,2]
[342764873,1732120249791,-641.63,0.00024381,2]
[342764874,1732120249803,-500.0,0.00024382,2]
[342764875,1732120249813,-500.0,0.00024382,2]
[342764876,1732120249823,-500.0,0.00024382,2]
[342764877,1732120249835,-500.0,0.00024382,2]
[342764878,1732120249845,-624.62,0.00024382,2]
[342764879,1732120249854,-500.0,0.00024382,2]
[342764880,1732120249865,-749.09,0.00024382,2]
[342764881,1732120249875,-268.09236063,0.00024383,2]
[342764882,1732120249885,-200.0,0.00024383,2]
[342764883,1732120249895,-500.0,0.00024383,2]
[342764884,1732120249907,-500.0,0.00024383,2]
[342764885,1732120249918,-500.0,0.00024383,2]
[342764886,1732120249927,-501.15,0.00024383,2]
[342764887,1732120249937,-500.0,0.00024383,2]
[342764888,1732120249947,-500.0,0.00024383,2]
[342764889,1732120249958,-909.21,0.00024383,2]
[342764890,1732120249967,-415.60337903,0.00024383,2]
[342764891,1732120249980,-500.0,0.00024383,2]
[342764892,1732120249989,-500.0,0.00024383,2]
[342764893,1732120249998,-500.0,0.00024383,2]
[342764894,1732120250007,-576.96,0.00024383,2]
[342764895,1732120250016,-500.0,0.00024383,2]
[342764896,1732120250026,-912.61,0.00024383,2]
[342764897,1732120250035,-5859.54,0.00024383,2]
[342764898,1732120250044,-500.0,0.00024383,2]
[342764899,1732120250054,-500.0,0.00024383,2]
[342764900,1732120250063,-694.75,0.00024383,2]
[342764901,1732120250072,-500.0,0.00024383,2]
[342764902,1732120250081,-1530.7,0.00024383,2]
[342764903,1732120250091,-445.64,0.00024383,2]
[342764904,1732120250100,-500.0,0.00024383,2]
[342764905,1732120250110,-500.0,0.00024383,2]
[342764906,1732120250119,-399.24713804,0.00024383,2]
[342764907,1732120250129,-500.0,0.00024383,2]
[342764908,1732120250139,-500.0,0.00024383,2]
[342764909,1732120250149,-359.4,0.00024383,2]
[342764910,1732120250158,-517.28,0.00024383,2]
[342764911,1732120250168,-5527.15,0.00024383,2]
[342764912,1732120250177,-500.0,0.00024383,2]
[342764913,1732120250186,-598.46,0.00024383,2]
[342764914,1732120250195,-500.0,0.00024383,2]
[342764915,1732120250205,-500.0,0.00024383,2]
[342764916,1732120250214,-500.0,0.00024383,2]
[342764917,1732120250223,-1056.97045912,0.00024496,2]
[342764918,1732120250237,-641.63,0.00024655,2]
[342764919,1732120250246,-500.0,0.00024656,2]
[342764920,1732120250256,-500.0,0.00024656,2]
[342764921,1732120250265,-500.0,0.00024656,2]
[342764922,1732120250275,-500.0,0.00024656,2]
[342764923,1732120250285,-624.62,0.00024656,2]
[342764924,1732120250295,-500.0,0.00024656,2]
[342764925,1732120250305,-749.09,0.00024656,2]
[342764926,1732120250316,-168.1761836,0.00024657,2]
[342764927,1732120250326,-500.0,0.00024657,2]
[342764928,1732120250336,-500.0,0.00024657,2]
[342764929,1732120250345,-575.06,0.00024657,2]
[342764930,1732120250355,-501.15,0.00024657,2]
[342764931,1732120250365,-500.0,0.00024657,2]
[342764932,1732120250374,-594.82359615,0.00024657,2]
[342764933,1732120250383,-909.21,0.00024657,2]
[342764934,1732120250394,-500.0,0.00024657,2]
[342764935,1732120250404,-500.0,0.00024657,2]
[342764936,1732120250414,-500.0,0.00024657,2]
[342764937,1732120250424,-576.96,0.00024657,2]
[342764938,1732120250434,-500.0,0.00024657,2]
[342764939,1732120250443,-912.61,0.00024657,2]
[342764940,1732120250452,-5859.54,0.00024657,2]
[342764941,1732120250461,-335.13931157,0.00024657,2]
[342764942,1732120250470,-500.0,0.00024657,2]
[342764943,1732120250481,-694.75,0.00024657,2]
[342764944,1732120250490,-500.0,0.00024657,2]
[342764945,1732120250500,-1530.7,0.00024657,2]
[342764946,1732120250509,-500.0,0.00024657,2]
[342764947,1732120250519,-500.0,0.00024657,2]
[342764948,1732120250529,-500.0,0.00024657,2]
[342764949,1732120250538,-500.0,0.00024657,2]
[342764950,1732120250548,-517.28,0.00024657,2]
[342764951,1732120250557,-5527.15,0.00024657,2]
[342764952,1732120250566,-500.0,0.00024657,2]
[342764953,1732120250576,-434.61258766,0.00024657,2]
[342764954,1732120250586,-500.0,0.00024657,2]
[342764955,1732120250595,-500.0,0.00024657,2]
[342764956,1732120250604,-552.77863766,0.0002466,2]
[342764957,1732120250614,-1112.0,0.00024833,2]
[342764958,1732120250623,-530.0,0.00024833,2]
[342764959,1732120250633,-2387.0,0.00024833,2]
[342764960,1732120250642,-641.63,0.00024929,2]
[342764961,1732120250652,-500.0,0.0002493,2]
[342764962,1732120250661,-500.0,0.0002493,2]
[342764963,1732120250670,-500.0,0.0002493,2]
[342764964,1732120250679,-500.0,0.0002493,2]
[342764965,1732120250689,-624.62,0.0002493,2]
[342764966,1732120250699,-500.0,0.0002493,2]
[342764967,1732120250709,-749.09,0.0002493,2]
[342764968,1732120250718,-500.0,0.00024931,2]
[342764969,1732120250728,-500.0,0.00024931,2]
[342764970,1732120250740,-501.15,0.00024931,2]
[342764971,1732120250749,-500.0,0.00024931,2]
[342764972,1732120250759,-909.21,0.00024931,2]
[342764973,1732120250769,-500.0,0.00024931,2]
[342764974,1732120250779,-500.0,0.00024931,2]
[342764975,1732120250788,-500.0,0.00024931,2]
[342764976,1732120250799,-576.96,0.00024931,2]
[342764977,1732120250812,-500.0,0.00024931,2]
[342764978,1732120250821,-912.61,0.00024931,2]
[342764979,1732120250831,-5859.54,0.00024931,2]
[342764980,1732120250840,-694.75,0.00024931,2]
[342764981,1732120250852,-500.0,0.00024931,2]
[342764982,1732120250862,-1530.7,0.00024931,2]
[342764983,1732120250872,-500.0,0.00024931,2]
[342764984,1732120250881,-500.0,0.00024931,2]
[342764985,1732120250891,-500.0,0.00024931,2]
[342764986,1732120250902,-500.0,0.00024931,2]
[342764987,1732120250911,-517.28,0.00024931,2]
[342764988,1732120250920,-5527.15,0.00024931,2]
[342764989,1732120250931,-500.0,0.00024931,2]
[342764990,1732120250940,-500.0,0.00024931,2]
[342764991,1732120250950,-500.0,0.00025144,3]
[342764992,1732120250960,-641.63,0.00025203,2]
[342764993,1732120250970,-500.0,0.00025204,2]
[342764994,1732120250981,-500.0,0.00025204,2]
[342764995,1732120250991,-281.05853602,0.00025204,2]
[342764996,1732120251001,-500.0,0.00025204,2]
[342764997,1732120251010,-624.62,0.00025204,2]
[342764998,1732120251020,-500.0,0.00025204,2]
[342764999,1732120251030,-749.09,0.00025204,2]
[342765000,1732120251040,-500.0,0.00025205,2]
[342765001,1732120251050,-500.0,0.00025205,2]
[342765002,1732120251060,-501.15,0.00025205,2]
[342765003,1732120251069,-500.0,0.00025205,2]
[342765004,1732120251079,-909.21,0.00025205,2]